[Event "*** Titled Tuesday Blitz"]
[Site "Chess.com"]
[Date "2020.05.19"]
[Round "4"]
[White "FMJoseHerrera"]
[Black "IMJonathanCarlstedt"]
[Result "1-0"]
[WhiteElo "2649"]
[BlackElo "2468"]
[TimeControl "180+1"]
[EndTime "12:40:42 PDT"]
[Termination "FMJoseHerrera won by checkmate"]

1. Nf3 {[%clk 0:03:00.9]} 1... g6 {[%clk 0:03:00.9]} 2. g3 {[%clk 0:03:00.1]}
2... Bg7 {[%clk 0:02:59.2]} 3. Bg2 {[%clk 0:03:01]} 3... d6 {[%clk 0:02:58.3]}
4. d3 {[%clk 0:03:00.6]} 4... Nc6 {[%clk 0:02:58.3]} 5. Nc3 {[%clk 0:03:00.1]}
5... e5 {[%clk 0:02:58.3]} 6. h4 {[%clk 0:02:59.4]} 6... h5 {[%clk 0:02:57.8]}
7. Bg5 {[%clk 0:02:56.3]} 7... f6 {[%clk 0:02:53]} 8. Bd2 {[%clk 0:02:55]} 8...
Nge7 {[%clk 0:02:53.5]} 9. e4 {[%clk 0:02:54.8]} 9... Be6 {[%clk 0:02:53.1]} 10.
O-O {[%clk 0:02:54.3]} 10... Qd7 {[%clk 0:02:51.2]} 11. Be3 {[%clk 0:02:46.9]}
11... Bh3 {[%clk 0:02:46.7]} 12. d4 {[%clk 0:02:44.4]} 12... Bxg2 {[%clk
0:02:42.5]} 13. Kxg2 {[%clk 0:02:43.6]} 13... exd4 {[%clk 0:02:34.6]} 14. Nxd4
{[%clk 0:02:43.1]} 14... O-O-O {[%clk 0:02:35.1]} 15. b4 {[%clk 0:02:39.4]}
15... g5 {[%clk 0:02:25.8]} 16. b5 {[%clk 0:02:08.8]} 16... Ne5 {[%clk
0:02:21.2]} 17. a4 {[%clk 0:01:57.5]} 17... gxh4 {[%clk 0:02:17.9]} 18. a5
{[%clk 0:01:56.4]} 18... hxg3 {[%clk 0:02:17.3]} 19. b6 {[%clk 0:01:52.4]} 19...
cxb6 {[%clk 0:01:59.2]} 20. a6 {[%clk 0:01:21.1]} 20... gxf2 {[%clk 0:01:50.7]}
21. axb7+ {[%clk 0:01:17.6]} 21... Qxb7 {[%clk 0:01:51.1]} 22. Ndb5 {[%clk
0:01:12]} 22... Nf5 {[%clk 0:01:08.1]} 23. Bxf2 {[%clk 0:00:57.5]} 23... a6
{[%clk 0:00:43.3]} 24. Nd5 {[%clk 0:00:57.2]} 24... axb5 {[%clk 0:00:10.8]} 25.
Bxb6 {[%clk 0:00:57.1]} 25... Rdg8 {[%clk 0:00:07.7]} 26. Rxf5 {[%clk 0:00:56]}
26... Bh6+ {[%clk 0:00:07]} 27. Kh1 {[%clk 0:00:56.1]} 27... Ng4 {[%clk
0:00:04.5]} 28. Ra7 {[%clk 0:00:53.7]} 28... Ne5 {[%clk 0:00:02.1]} 29. Rxb7
{[%clk 0:00:52.2]} 29... Kxb7 {[%clk 0:00:03]} 30. Bd4 {[%clk 0:00:49.8]} 30...
Rg4 {[%clk 0:00:02.4]} 31. Nxf6 {[%clk 0:00:42.8]} 31... Rh4+ {[%clk 0:00:01.8]}
32. Kg2 {[%clk 0:00:43]} 32... Ng4 {[%clk 0:00:01.8]} 33. Bg1 {[%clk 0:00:36.5]}
33... Nxf6 {[%clk 0:00:01.5]} 34. Rxf6 {[%clk 0:00:30.9]} 34... Rg4+ {[%clk
0:00:02.4]} 35. Kf1 {[%clk 0:00:30.9]} 35... Rhg8 {[%clk 0:00:02.7]} 36. Qd5+
{[%clk 0:00:31.4]} 36... Kc8 {[%clk 0:00:02.4]} 37. Qc6+ {[%clk 0:00:31.3]}
37... Kb8 {[%clk 0:00:01.9]} 38. Qb6+ {[%clk 0:00:31.1]} 38... Kc8 {[%clk
0:00:01]} 39. Qc6+ {[%clk 0:00:25.5]} 39... Kb8 {[%clk 0:00:01.9]} 40. Qxd6+
{[%clk 0:00:25.4]} 40... Kb7 {[%clk 0:00:02.4]} 41. Qb6+ {[%clk 0:00:24.5]}
41... Kc8 {[%clk 0:00:03.3]} 42. Rc6+ {[%clk 0:00:24.1]} 42... Kd7 {[%clk
0:00:04.2]} 43. Rc7+ {[%clk 0:00:24.6]} 43... Ke8 {[%clk 0:00:04.7]} 44. Qb8#
{[%clk 0:00:24.4]} 1-0

[Event "*** Titled Tuesday Blitz"]
[Site "Chess.com"]
[Date "2020.05.19"]
[Round "4"]
[White "2nd_life"]
[Black "viktorskliarov"]
[Result "1-0"]
[WhiteElo "2434"]
[BlackElo "2576"]
[TimeControl "180+1"]
[EndTime "12:40:42 PDT"]
[Termination "2nd_life won by resignation"]

1. e4 {[%clk 0:03:00.9]} 1... c5 {[%clk 0:02:57.8]} 2. Nf3 {[%clk 0:03:00.5]}
2... Nc6 {[%clk 0:02:58]} 3. Bb5 {[%clk 0:02:59.9]} 3... e6 {[%clk 0:02:57.7]}
4. Bxc6 {[%clk 0:02:59.5]} 4... bxc6 {[%clk 0:02:56.6]} 5. O-O {[%clk
0:02:59.2]} 5... Ne7 {[%clk 0:02:55.2]} 6. Re1 {[%clk 0:02:56.6]} 6... Ng6
{[%clk 0:02:54.6]} 7. b3 {[%clk 0:02:48.8]} 7... e5 {[%clk 0:02:54.7]} 8. c3
{[%clk 0:02:46.8]} 8... Be7 {[%clk 0:02:40]} 9. Bb2 {[%clk 0:02:32.8]} 9... O-O
{[%clk 0:02:38.8]} 10. d4 {[%clk 0:02:32.8]} 10... cxd4 {[%clk 0:02:35.2]} 11.
cxd4 {[%clk 0:02:33.7]} 11... exd4 {[%clk 0:02:34.1]} 12. Qxd4 {[%clk
0:02:30.8]} 12... Bf6 {[%clk 0:02:22.2]} 13. Qd2 {[%clk 0:01:57.1]} 13... Bxb2
{[%clk 0:02:17.5]} 14. Qxb2 {[%clk 0:01:56.5]} 14... d5 {[%clk 0:02:18.4]} 15.
exd5 {[%clk 0:01:52.7]} 15... cxd5 {[%clk 0:02:17.2]} 16. Qd4 {[%clk 0:01:50.3]}
16... Qb6 {[%clk 0:01:55.8]} 17. Nc3 {[%clk 0:01:48.1]} 17... Qxd4 {[%clk
0:01:47.9]} 18. Nxd4 {[%clk 0:01:47.6]} 18... Bb7 {[%clk 0:01:48.3]} 19. g3
{[%clk 0:01:34.9]} 19... Rfe8 {[%clk 0:01:27.7]} 20. Rxe8+ {[%clk 0:01:29.7]}
20... Rxe8 {[%clk 0:01:26.8]} 21. Rc1 {[%clk 0:01:30.6]} 21... Ne5 {[%clk
0:01:22.7]} 22. Ncb5 {[%clk 0:01:26.9]} 22... h5 {[%clk 0:01:08.4]} 23. Re1
{[%clk 0:01:09.5]} 23... Ba6 {[%clk 0:00:23.8]} 24. Nc7 {[%clk 0:00:58.4]} 24...
Rc8 {[%clk 0:00:14.7]} 25. Nxa6 {[%clk 0:00:57.5]} 25... f6 {[%clk 0:00:15.1]}
26. f4 {[%clk 0:00:52.1]} 26... Nd3 {[%clk 0:00:14.2]} 27. Rd1 {[%clk
0:00:43.9]} 27... Nc1 {[%clk 0:00:12.2]} 28. Nb4 {[%clk 0:00:34.1]} 28... h4
{[%clk 0:00:09.5]} 29. Nbc6 {[%clk 0:00:32.1]} 29... Ne2+ {[%clk 0:00:06.1]} 30.
Kf2 {[%clk 0:00:28.6]} 30... Nxd4 {[%clk 0:00:04.2]} 31. Ne7+ {[%clk 0:00:28.4]}
31... Kf7 {[%clk 0:00:04.2]} 32. Nxc8 {[%clk 0:00:28.9]} 32... Nf5 {[%clk
0:00:04.4]} 33. Rxd5 {[%clk 0:00:27.8]} 33... Ke6 {[%clk 0:00:04.9]} 34. Rxf5
{[%clk 0:00:26.9]} 34... hxg3+ {[%clk 0:00:05.1]} 35. hxg3 {[%clk 0:00:26.7]}
35... Kxf5 {[%clk 0:00:06]} 36. Nxa7 {[%clk 0:00:27]} 36... g5 {[%clk
0:00:06.4]} 37. fxg5 {[%clk 0:00:26.8]} 37... fxg5 {[%clk 0:00:07.3]} 38. Nc6
{[%clk 0:00:26.8]} 38... Kg4 {[%clk 0:00:08.2]} 39. Ne5+ {[%clk 0:00:26.3]}
39... Kh3 {[%clk 0:00:09.1]} 40. Nf7 {[%clk 0:00:24.9]} 40... g4 {[%clk
0:00:10]} 41. Ne5 {[%clk 0:00:24.6]} 41... Kh2 {[%clk 0:00:09.9]} 42. Nxg4+
{[%clk 0:00:24.5]} 42... Kh1 {[%clk 0:00:10.8]} 43. Ne3 {[%clk 0:00:23.7]} 43...
Kh2 {[%clk 0:00:11.1]} 44. g4 {[%clk 0:00:24.1]} 44... Kh1 {[%clk 0:00:11]} 45.
g5 {[%clk 0:00:24.2]} 45... Kh2 {[%clk 0:00:11.5]} 46. g6 {[%clk 0:00:24.6]} 1-0

[Event "*** Titled Tuesday Blitz"]
[Site "Chess.com"]
[Date "2020.05.19"]
[Round "4"]
[White "Harry_Rakkel"]
[Black "Isajevsky_Anton"]
[Result "0-1"]
[WhiteElo "2571"]
[BlackElo "2423"]
[TimeControl "180+1"]
[EndTime "12:40:42 PDT"]
[Termination "Isajevsky_Anton won on time"]

1. e4 {[%clk 0:03:00.9]} 1... c5 {[%clk 0:02:59.4]} 2. Nf3 {[%clk 0:03:00.5]}
2... d6 {[%clk 0:02:59]} 3. d4 {[%clk 0:03:00.9]} 3... cxd4 {[%clk 0:02:58.8]}
4. Nxd4 {[%clk 0:03:01.4]} 4... Nf6 {[%clk 0:02:58.5]} 5. Nc3 {[%clk 0:03:02]}
5... a6 {[%clk 0:02:58.4]} 6. h3 {[%clk 0:03:02]} 6... e5 {[%clk 0:02:57.9]} 7.
Nde2 {[%clk 0:03:01.4]} 7... h5 {[%clk 0:02:58]} 8. g3 {[%clk 0:02:58.3]} 8...
Be7 {[%clk 0:02:42.2]} 9. Bg2 {[%clk 0:02:57]} 9... Be6 {[%clk 0:02:38.2]} 10.
O-O {[%clk 0:02:55.3]} 10... Nbd7 {[%clk 0:02:37.8]} 11. a4 {[%clk 0:02:50.2]}
11... Rc8 {[%clk 0:02:36.2]} 12. f4 {[%clk 0:02:42.9]} 12... O-O {[%clk
0:02:32.5]} 13. f5 {[%clk 0:02:33.5]} 13... Bc4 {[%clk 0:02:31.9]} 14. Re1
{[%clk 0:02:27.4]} 14... Re8 {[%clk 0:02:02]} 15. b3 {[%clk 0:02:10.4]} 15...
Bxe2 {[%clk 0:02:01.4]} 16. Nxe2 {[%clk 0:02:11.3]} 16... b5 {[%clk 0:01:58.1]}
17. axb5 {[%clk 0:02:09.3]} 17... axb5 {[%clk 0:01:58.2]} 18. Be3 {[%clk
0:01:57.9]} 18... Qc7 {[%clk 0:01:39]} 19. c3 {[%clk 0:01:37.2]} 19... Nc5
{[%clk 0:01:24.5]} 20. Qc2 {[%clk 0:01:34.2]} 20... Ra8 {[%clk 0:01:21.2]} 21.
Kh2 {[%clk 0:01:23.4]} 21... Qb7 {[%clk 0:01:09.3]} 22. Bxc5 {[%clk 0:01:00.1]}
22... dxc5 {[%clk 0:01:09.2]} 23. c4 {[%clk 0:00:56.1]} 23... b4 {[%clk
0:01:09]} 24. Rxa8 {[%clk 0:00:50.1]} 24... Rxa8 {[%clk 0:01:01.7]} 25. Rd1
{[%clk 0:00:46.2]} 25... Rd8 {[%clk 0:00:55.2]} 26. Rxd8+ {[%clk 0:00:43.5]}
26... Bxd8 {[%clk 0:00:55.3]} 27. Qd1 {[%clk 0:00:42.2]} 27... Be7 {[%clk
0:00:50.3]} 28. Nc1 {[%clk 0:00:37.3]} 28... Qd7 {[%clk 0:00:44.7]} 29. Qxd7
{[%clk 0:00:22.4]} 29... Nxd7 {[%clk 0:00:44.3]} 30. Kg1 {[%clk 0:00:20.4]}
30... Bg5 {[%clk 0:00:37.2]} 31. Nd3 {[%clk 0:00:19.6]} 31... Be3+ {[%clk
0:00:37]} 32. Kf1 {[%clk 0:00:19.4]} 32... Bd4 {[%clk 0:00:37]} 33. Bf3 {[%clk
0:00:19.3]} 33... g6 {[%clk 0:00:36.5]} 34. Ke2 {[%clk 0:00:15.9]} 34... Nb8
{[%clk 0:00:34.8]} 35. g4 {[%clk 0:00:15]} 35... hxg4 {[%clk 0:00:33.8]} 36.
hxg4 {[%clk 0:00:14.5]} 36... Kg7 {[%clk 0:00:34.3]} 37. g5 {[%clk 0:00:13]}
37... f6 {[%clk 0:00:34.7]} 38. gxf6+ {[%clk 0:00:11.8]} 38... Kxf6 {[%clk
0:00:35]} 39. fxg6 {[%clk 0:00:11.7]} 39... Kxg6 {[%clk 0:00:35.5]} 40. Bg4
{[%clk 0:00:11.6]} 40... Nc6 {[%clk 0:00:35.7]} 41. Bd7 {[%clk 0:00:09.7]} 41...
Ne7 {[%clk 0:00:35.3]} 42. Kf3 {[%clk 0:00:08.5]} 42... Kg5 {[%clk 0:00:35.5]}
43. Ne1 {[%clk 0:00:06.6]} 43... Ng6 {[%clk 0:00:35.3]} 44. Be8 {[%clk
0:00:04.4]} 44... Nf4 {[%clk 0:00:34.9]} 45. Bc6 {[%clk 0:00:01.6]} 45... Bc3
{[%clk 0:00:34.6]} 0-1

[Event "*** Titled Tuesday Blitz"]
[Site "Chess.com"]
[Date "2020.05.19"]
[Round "4"]
[White "kuban1991"]
[Black "hansen"]
[Result "1-0"]
[WhiteElo "2750"]
[BlackElo "2952"]
[TimeControl "180+1"]
[EndTime "12:40:43 PDT"]
[Termination "kuban1991 won on time"]

1. Nf3 {[%clk 0:03:00.9]} 1... Nf6 {[%clk 0:02:56.1]} 2. g3 {[%clk 0:03:00.6]}
2... g6 {[%clk 0:02:56]} 3. Bg2 {[%clk 0:03:00.4]} 3... Bg7 {[%clk 0:02:56.6]}
4. O-O {[%clk 0:03:00.9]} 4... O-O {[%clk 0:02:57.5]} 5. d4 {[%clk 0:03:00.6]}
5... d5 {[%clk 0:02:57.5]} 6. Nbd2 {[%clk 0:03:00.6]} 6... a5 {[%clk 0:02:51.1]}
7. c3 {[%clk 0:02:58.9]} 7... a4 {[%clk 0:02:51]} 8. Re1 {[%clk 0:02:58.5]} 8...
Nbd7 {[%clk 0:02:45.8]} 9. e4 {[%clk 0:02:55]} 9... Nxe4 {[%clk 0:02:46]} 10.
Nxe4 {[%clk 0:02:55.8]} 10... dxe4 {[%clk 0:02:46.9]} 11. Rxe4 {[%clk 0:02:56]}
11... c5 {[%clk 0:02:23.8]} 12. Re1 {[%clk 0:02:55.2]} 12... e6 {[%clk
0:02:18.8]} 13. Be3 {[%clk 0:02:45]} 13... Qa5 {[%clk 0:02:16.6]} 14. h4 {[%clk
0:02:24.2]} 14... a3 {[%clk 0:02:10.1]} 15. b3 {[%clk 0:02:14.3]} 15... cxd4
{[%clk 0:02:03.7]} 16. Nxd4 {[%clk 0:01:41]} 16... Nf6 {[%clk 0:01:54.9]} 17. c4
{[%clk 0:01:34.6]} 17... Rd8 {[%clk 0:01:51.8]} 18. Qe2 {[%clk 0:01:27.9]} 18...
Ng4 {[%clk 0:01:08]} 19. Qxg4 {[%clk 0:01:08.1]} 19... e5 {[%clk 0:01:08.3]} 20.
Qe4 {[%clk 0:00:42.5]} 20... exd4 {[%clk 0:01:06]} 21. Bg5 {[%clk 0:00:38.8]}
21... f6 {[%clk 0:00:47.5]} 22. Bf4 {[%clk 0:00:37.1]} 22... d3 {[%clk
0:00:35.9]} 23. Rad1 {[%clk 0:00:27.8]} 23... Bg4 {[%clk 0:00:35.9]} 24. Bf3
{[%clk 0:00:22.5]} 24... Bxf3 {[%clk 0:00:15.9]} 25. Qxf3 {[%clk 0:00:23.4]}
25... Qf5 {[%clk 0:00:16.3]} 26. Qxb7 {[%clk 0:00:19.8]} 26... g5 {[%clk
0:00:15.9]} 27. hxg5 {[%clk 0:00:17.9]} 27... fxg5 {[%clk 0:00:16.8]} 28. Bc7
{[%clk 0:00:15.9]} 28... Bd4 {[%clk 0:00:08.7]} 29. Bxd8 {[%clk 0:00:11.6]}
29... Rxd8 {[%clk 0:00:08.5]} 30. Qg2 {[%clk 0:00:09.6]} 30... Rf8 {[%clk
0:00:07.4]} 31. Rf1 {[%clk 0:00:09.5]} 31... Kg7 {[%clk 0:00:06.1]} 32. g4
{[%clk 0:00:09.7]} 32... Qg6 {[%clk 0:00:03.3]} 33. Qd5 {[%clk 0:00:09.6]} 33...
Rf4 {[%clk 0:00:03.1]} 34. Qd7+ {[%clk 0:00:07.8]} 34... Kh6 {[%clk 0:00:03.2]}
35. Kg2 {[%clk 0:00:08.1]} 1-0

[Event "*** Titled Tuesday Blitz"]
[Site "Chess.com"]
[Date "2020.05.19"]
[Round "4"]
[White "MariaFominykh"]
[Black "lili_ani"]
[Result "0-1"]
[WhiteElo "2374"]
[BlackElo "2582"]
[TimeControl "180+1"]
[EndTime "12:40:46 PDT"]
[Termination "lili_ani won on time"]

1. d4 {[%clk 0:03:00.9]} 1... Nf6 {[%clk 0:02:58.9]} 2. Nf3 {[%clk 0:03:00.1]}
2... e6 {[%clk 0:02:57.4]} 3. c4 {[%clk 0:02:57.7]} 3... b6 {[%clk 0:02:55.8]}
4. g3 {[%clk 0:02:56.4]} 4... Bb7 {[%clk 0:02:55.9]} 5. Bg2 {[%clk 0:02:56.1]}
5... Bb4+ {[%clk 0:02:54.4]} 6. Bd2 {[%clk 0:02:54.2]} 6... Be7 {[%clk 0:02:51]}
7. O-O {[%clk 0:02:53.1]} 7... O-O {[%clk 0:02:50.8]} 8. Nc3 {[%clk 0:02:51.9]}
8... c5 {[%clk 0:02:46.7]} 9. d5 {[%clk 0:02:42.1]} 9... exd5 {[%clk 0:02:46.1]}
10. Nh4 {[%clk 0:02:41.6]} 10... g6 {[%clk 0:02:41.7]} 11. cxd5 {[%clk
0:02:38.7]} 11... d6 {[%clk 0:02:41.6]} 12. Bh6 {[%clk 0:02:33.7]} 12... Re8
{[%clk 0:02:40.9]} 13. h3 {[%clk 0:02:32.7]} 13... Na6 {[%clk 0:02:35.3]} 14.
Re1 {[%clk 0:02:21.2]} 14... Nc7 {[%clk 0:02:26.6]} 15. e4 {[%clk 0:02:19]}
15... Nd7 {[%clk 0:02:21.1]} 16. Nf3 {[%clk 0:02:14.6]} 16... Bf6 {[%clk
0:02:20.6]} 17. Bf4 {[%clk 0:01:57.3]} 17... Nf8 {[%clk 0:01:49.7]} 18. a4
{[%clk 0:01:51.2]} 18... g5 {[%clk 0:01:44.2]} 19. Bc1 {[%clk 0:01:37]} 19...
Ng6 {[%clk 0:01:43.9]} 20. Nh2 {[%clk 0:01:27.7]} 20... a6 {[%clk 0:01:29.7]}
21. Qh5 {[%clk 0:01:07.4]} 21... Nxd5 {[%clk 0:00:36]} 22. Nxd5 {[%clk
0:01:00.7]} 22... Bxd5 {[%clk 0:00:35.9]} 23. Bxg5 {[%clk 0:00:29.8]} 23... Bxg5
{[%clk 0:00:32.5]} 24. exd5 {[%clk 0:00:29.7]} 24... Bf6 {[%clk 0:00:31.2]} 25.
Ng4 {[%clk 0:00:21.6]} 25... Bxb2 {[%clk 0:00:24.6]} 26. Nh6+ {[%clk 0:00:21.8]}
26... Kf8 {[%clk 0:00:24.1]} 27. Rab1 {[%clk 0:00:13.1]} 27... Bd4 {[%clk
0:00:16.3]} 28. Qf5 {[%clk 0:00:08.7]} 28... Qf6 {[%clk 0:00:13.8]} 29. Rxe8+
{[%clk 0:00:08.2]} 29... Rxe8 {[%clk 0:00:12.9]} 30. Qxf6 {[%clk 0:00:08.3]}
30... Bxf6 {[%clk 0:00:12.5]} 31. Rxb6 {[%clk 0:00:08.8]} 31... Be5 {[%clk
0:00:08]} 32. Nf5 {[%clk 0:00:07.6]} 32... Rd8 {[%clk 0:00:06.8]} 33. Rxa6
{[%clk 0:00:07.1]} 33... Ne7 {[%clk 0:00:06.1]} 34. Ne3 {[%clk 0:00:05.1]} 34...
Bd4 {[%clk 0:00:06]} 0-1

[Event "*** Titled Tuesday Blitz"]
[Site "Chess.com"]
[Date "2020.05.19"]
[Round "4"]
[White "BikingBrian"]
[Black "WiktoriaPOL"]
[Result "1-0"]
[WhiteElo "2247"]
[BlackElo "2001"]
[TimeControl "180+1"]
[EndTime "12:40:46 PDT"]
[Termination "BikingBrian won on time"]

1. d4 {[%clk 0:03:00.9]} 1... Nf6 {[%clk 0:02:59.2]} 2. Bg5 {[%clk 0:03:00.3]}
2... c5 {[%clk 0:02:58]} 3. Nc3 {[%clk 0:02:59.5]} 3... cxd4 {[%clk 0:02:51.6]}
4. Qxd4 {[%clk 0:03:00.4]} 4... Nc6 {[%clk 0:02:51.6]} 5. Qh4 {[%clk 0:03:00.3]}
5... Qb6 {[%clk 0:02:47.5]} 6. O-O-O {[%clk 0:02:55.4]} 6... h6 {[%clk
0:02:44.6]} 7. e4 {[%clk 0:02:52.8]} 7... d6 {[%clk 0:02:22.9]} 8. Bxf6 {[%clk
0:02:33.8]} 8... gxf6 {[%clk 0:02:16]} 9. Nd5 {[%clk 0:02:33.1]} 9... Qa5 {[%clk
0:02:04.3]} 10. f4 {[%clk 0:02:23.6]} 10... Be6 {[%clk 0:01:58]} 11. a3 {[%clk
0:02:22.4]} 11... Rc8 {[%clk 0:01:40.9]} 12. Qe1 {[%clk 0:02:18.3]} 12... Qxe1
{[%clk 0:01:38.4]} 13. Rxe1 {[%clk 0:02:19.2]} 13... Bxd5 {[%clk 0:01:38.1]} 14.
exd5 {[%clk 0:02:19.3]} 14... Nd4 {[%clk 0:01:37.4]} 15. c3 {[%clk 0:02:10.6]}
15... Bg7 {[%clk 0:01:26]} 16. Kb1 {[%clk 0:02:10.5]} 16... Nb3 {[%clk
0:01:23.4]} 17. Bb5+ {[%clk 0:02:08.9]} 17... Kf8 {[%clk 0:01:21.1]} 18. Nf3
{[%clk 0:02:08.1]} 18... a6 {[%clk 0:01:19]} 19. Ba4 {[%clk 0:02:06.4]} 19...
Nc5 {[%clk 0:01:12.2]} 20. Bc2 {[%clk 0:02:06.1]} 20... b5 {[%clk 0:01:05.5]}
21. Nd4 {[%clk 0:02:05.6]} 21... Rc7 {[%clk 0:00:48.5]} 22. Nf5 {[%clk
0:01:57.1]} 22... Rd7 {[%clk 0:00:42.8]} 23. Re2 {[%clk 0:01:46.1]} 23... e6
{[%clk 0:00:41.9]} 24. Rhe1 {[%clk 0:01:43.6]} 24... e5 {[%clk 0:00:34.2]} 25.
Nd4 {[%clk 0:01:19.8]} 25... h5 {[%clk 0:00:24.9]} 26. Nc6 {[%clk 0:01:16.6]}
26... Bh6 {[%clk 0:00:22.7]} 27. Bf5 {[%clk 0:01:00.3]} 27... Rc7 {[%clk
0:00:18.6]} 28. fxe5 {[%clk 0:00:54.3]} 28... fxe5 {[%clk 0:00:16.2]} 29. Rf1
{[%clk 0:00:50.7]} 29... Kg7 {[%clk 0:00:15.5]} 30. Nb4 {[%clk 0:00:46.2]} 30...
a5 {[%clk 0:00:14.8]} 31. Nd3 {[%clk 0:00:45.9]} 31... Nxd3 {[%clk 0:00:14.4]}
32. Bxd3 {[%clk 0:00:46.8]} 32... f6 {[%clk 0:00:13.4]} 33. Ref2 {[%clk
0:00:44.6]} 33... Bg5 {[%clk 0:00:12.6]} 34. g3 {[%clk 0:00:44.9]} 34... h4
{[%clk 0:00:12.3]} 35. g4 {[%clk 0:00:41.6]} 35... Rf8 {[%clk 0:00:09.6]} 36.
Bf5 {[%clk 0:00:41]} 36... Rc4 {[%clk 0:00:08.4]} 37. Rf3 {[%clk 0:00:34.2]}
37... Rf4 {[%clk 0:00:08.1]} 38. Rxf4 {[%clk 0:00:34]} 38... Bxf4 {[%clk
0:00:08]} 39. h3 {[%clk 0:00:33.5]} 39... Rd8 {[%clk 0:00:05]} 40. Kc2 {[%clk
0:00:33]} 40... Rb8 {[%clk 0:00:04.6]} 41. Bd3 {[%clk 0:00:31.7]} 41... b4
{[%clk 0:00:04.3]} 42. axb4 {[%clk 0:00:31.5]} 42... axb4 {[%clk 0:00:04.6]} 43.
Ra1 {[%clk 0:00:29]} 43... bxc3 {[%clk 0:00:04.2]} 44. Ra7+ {[%clk 0:00:27.1]}
44... Kg8 {[%clk 0:00:03.2]} 45. bxc3 {[%clk 0:00:26.4]} 45... Re8 {[%clk
0:00:01.4]} 46. Be4 {[%clk 0:00:24.8]} 1-0

[Event "*** Titled Tuesday Blitz"]
[Site "Chess.com"]
[Date "2020.05.19"]
[Round "4"]
[White "1stSecond"]
[Black "rasmussvane"]
[Result "1-0"]
[WhiteElo "2725"]
[BlackElo "2883"]
[TimeControl "180+1"]
[EndTime "12:40:48 PDT"]
[Termination "1stSecond won on time"]

1. Nf3 {[%clk 0:03:00.9]} 1... d5 {[%clk 0:02:59.5]} 2. g3 {[%clk 0:02:59.8]}
2... g6 {[%clk 0:02:59.7]} 3. d4 {[%clk 0:02:58.8]} 3... Bg7 {[%clk 0:02:59.8]}
4. Bg2 {[%clk 0:02:59.2]} 4... Nd7 {[%clk 0:02:59.9]} 5. O-O {[%clk 0:02:53.2]}
5... Ngf6 {[%clk 0:03:00.1]} 6. a4 {[%clk 0:02:51]} 6... a5 {[%clk 0:02:56.1]}
7. c3 {[%clk 0:02:28.5]} 7... O-O {[%clk 0:02:54.6]} 8. Nbd2 {[%clk 0:02:25.9]}
8... b6 {[%clk 0:02:52.2]} 9. Re1 {[%clk 0:02:25.1]} 9... Bb7 {[%clk 0:02:52.2]}
10. b3 {[%clk 0:01:59.2]} 10... Re8 {[%clk 0:02:22]} 11. Bb2 {[%clk 0:01:55.2]}
11... Rc8 {[%clk 0:02:20]} 12. Rc1 {[%clk 0:01:50.8]} 12... c5 {[%clk 0:02:15]}
13. c4 {[%clk 0:01:36.1]} 13... e6 {[%clk 0:02:06.2]} 14. e3 {[%clk 0:01:27.4]}
14... Qe7 {[%clk 0:02:06.2]} 15. Ne5 {[%clk 0:01:25.3]} 15... Red8 {[%clk
0:01:59.7]} 16. Qe2 {[%clk 0:01:16.3]} 16... h5 {[%clk 0:01:46.1]} 17. cxd5
{[%clk 0:00:54.9]} 17... Bxd5 {[%clk 0:01:16.8]} 18. Ndc4 {[%clk 0:00:44.1]}
18... Bxg2 {[%clk 0:01:09]} 19. Kxg2 {[%clk 0:00:43]} 19... Nxe5 {[%clk
0:00:15.9]} 20. dxe5 {[%clk 0:00:42]} 20... Nd5 {[%clk 0:00:16.5]} 21. e4 {[%clk
0:00:37.6]} 21... Nb4 {[%clk 0:00:17]} 22. Nxb6 {[%clk 0:00:37.1]} 22... Rb8
{[%clk 0:00:16.8]} 23. Nc4 {[%clk 0:00:31.5]} 23... Nd3 {[%clk 0:00:16.7]} 24.
Qc2 {[%clk 0:00:28.9]} 24... Nxe1+ {[%clk 0:00:15.9]} 25. Rxe1 {[%clk
0:00:29.8]} 25... Qc7 {[%clk 0:00:14.5]} 26. Bc3 {[%clk 0:00:27.2]} 26... Ra8
{[%clk 0:00:14.3]} 27. f4 {[%clk 0:00:17.9]} 27... Rd7 {[%clk 0:00:12.4]} 28. f5
{[%clk 0:00:15.1]} 28... Bh6 {[%clk 0:00:07.8]} 29. fxg6 {[%clk 0:00:10.4]}
29... fxg6 {[%clk 0:00:07.9]} 30. Rf1 {[%clk 0:00:11.3]} 30... Rf7 {[%clk
0:00:07.4]} 31. Rf6 {[%clk 0:00:10.3]} 31... Kh7 {[%clk 0:00:04.6]} 32. Qf2
{[%clk 0:00:09.2]} 32... Raf8 {[%clk 0:00:04.5]} 33. Bxa5 {[%clk 0:00:07.2]}
33... Qd7 {[%clk 0:00:02.3]} 34. Bc3 {[%clk 0:00:05.2]} 34... Rxf6 {[%clk
0:00:01.6]} 35. exf6 {[%clk 0:00:05.9]} 35... Qd6 {[%clk 0:00:02.5]} 36. Nxd6
{[%clk 0:00:05.3]} 1-0